bitfinex/quotes_SOLUSD_20251120
["timestamp","ask_amount","ask_price","bid_price","bid_amount"]
[1763647321356,6.48428588,140.8,140.67,50.0]
[1763647321357,6.48428588,140.76,140.7,7.14428588]
[1763647321563,2.42,140.79,140.7,7.14428588]
[1763647321749,6.48428588,140.75,140.68,1.74]
[1763647321947,7.10378631,140.77,140.7,7.10732054]
[1763647322272,0.68,140.82,140.75,6.48428588]
[1763647322462,6.48428588,140.76,140.68,0.66]
[1763647322678,6.48428588,140.69,140.65,7.10984713]
[1763647322883,11.28739556,140.66,140.58,11.94739556]
[1763647323181,27.90978769,140.67,140.58,24.89685587]
[1763647323480,11.28739556,140.65,140.59,11.28739556]
[1763647323678,1.74,140.64,140.59,11.94739556]
[1763647323862,1.74,140.64,140.6,0.66]
[1763647324067,1.74,140.64,140.56,11.28739556]
[1763647324068,11.28739556,140.62,140.56,11.28739556]
[1763647324272,11.28739556,140.62,140.56,11.94739556]
[1763647324673,11.28739556,140.61,140.56,0.66]
[1763647324980,8.85043303,140.64,140.53,1.74]
[1763647324981,11.28739556,140.59,140.53,0.66]
[1763647325188,11.28739556,140.56,140.51,7.11675863]
[1763647325360,0.68,140.6,140.5,11.94739556]
[1763647325361,11.28739556,140.54,140.5,7.77730251]
[1763647325566,11.28739556,140.54,140.5,7.11730251]
[1763647325758,0.68,140.53,140.5,7.11730251]
[1763647326084,18.12096,140.57,140.49,36.20020073]
[1763647326262,13.02739556,140.56,140.51,0.66]
[1763647326579,11.28739556,140.56,140.51,0.66]
[1763647326782,1.74,140.57,140.52,11.28739556]
[1763647326979,1.74,140.57,140.52,0.66]
[1763647327177,1.74,140.57,140.52,11.94739556]
[1763647327678,11.28739556,140.58,140.53,0.66]
[1763647327868,1.74,140.57,140.53,0.66]
[1763647328070,1.74,140.57,140.54,7.11541198]
[1763647328676,13.02739556,140.57,140.51,18.45202017]
[1763647328861,13.02739556,140.57,140.5,7.11743772]
[1763647328862,0.68,140.56,140.5,7.11743772]
[1763647329063,11.28739556,140.53,140.48,7.11807828]
[1763647329266,13.02739556,140.53,140.48,7.11807828]
[1763647329583,1.74,140.53,140.48,36.2016014]
[1763647329877,1.74,140.54,140.5,11.28739556]
[1763647330193,1.74,140.54,140.49,0.66]
[1763647330194,1.74,140.55,140.52,11.28739556]
[1763647330389,1.74,140.59,140.54,11.28739556]
[1763647330687,11.28739556,140.61,140.52,18.78096]
[1763647330900,1.74,140.61,140.57,11.28739556]
[1763647331067,0.68,140.64,140.54,18.12096]
[1763647331068,1.74,140.62,140.59,11.28739556]
[1763647331271,1.74,140.62,140.55,1.74]
[1763647331272,1.74,140.62,140.6,11.28739556]
[1763647331477,11.28739556,140.68,140.61,11.28739556]
[1763647331793,11.28739556,140.66,140.6,11.28739556]
[1763647332096,11.28739556,140.65,140.59,24.89508499]
[1763647332276,11.96739556,140.64,140.58,7.11328905]
[1763647332463,11.28739556,140.61,140.54,11.94739556]
[1763647332793,11.28739556,140.59,140.54,7.11541198]
[1763647332977,13.02739556,140.59,140.53,11.28739556]
[1763647333173,13.02739556,140.59,140.52,2.4]
[1763647333375,13.02739556,140.59,140.53,11.94739556]
[1763647333684,11.28739556,140.58,140.53,0.66]
[1763647333908,11.28739556,140.56,140.5,11.28739556]
[1763647334189,1.74,140.55,140.52,24.90748647]
[1763647334395,0.68,140.58,140.53,11.28739556]
[1763647334396,1.74,140.58,140.53,11.28739556]
[1763647334568,13.70739556,140.58,140.52,36.19488203]
[1763647334769,11.96739556,140.57,140.52,24.90748647]
[1763647335100,11.28739556,140.54,140.48,7.77837088]
[1763647335259,1.74,140.53,140.48,19.06576644]
[1763647335466,13.70739556,140.53,140.48,7.11837088]
[1763647335687,2.42,140.53,140.47,11.28739556]
[1763647335892,11.28739556,140.52,140.47,11.28739556]
[1763647336072,11.28739556,140.52,140.47,18.40594885]
[1763647336306,11.96739556,140.51,140.46,18.406751]
[1763647336497,11.28739556,140.49,140.44,7.22040378]
[1763647336676,13.02739556,140.49,140.44,7.22040378]
[1763647336872,13.02739556,140.49,140.44,7.88040378]
[1763647337074,1.74,140.49,140.45,11.94739556]
[1763647337284,1.74,140.51,140.46,11.28739556]
[1763647337487,11.96739556,140.5,140.44,0.1]
[1763647337702,12.25989896,140.49,140.44,7.22044229]
[1763647338077,27.90978769,140.54,140.47,12.25989896]
[1763647338078,18.12096,140.54,140.47,12.25989896]
[1763647338404,18.12096,140.54,140.48,12.25989896]
[1763647338405,13.99989896,140.53,140.48,12.25989896]
[1763647338613,13.99989896,140.53,140.46,24.91812615]
[1763647338614,1.74,140.53,140.46,25.57812615]
[1763647338802,1.74,140.53,140.47,12.25989896]
[1763647339007,1.74,140.53,140.48,12.91989896]
[1763647339312,9.78882769,140.58,140.51,12.25989896]
[1763647339477,0.68,140.56,140.51,12.25989896]
[1763647339675,0.68,140.56,140.5,12.25989896]
[1763647340007,0.68,140.59,140.52,12.25989896]
[1763647340187,12.25989896,140.57,140.53,7.1159183]
[1763647340389,1.74,140.56,140.51,12.25989896]
[1763647340593,13.99989896,140.56,140.51,7.11690297]
[1763647340898,14.71989896,140.56,140.5,12.91989896]
[1763647341203,12.25989896,140.52,140.46,24.91781583]
[1763647341499,13.99989896,140.51,140.45,20.03971392]
[1763647341722,12.25989896,140.49,140.45,7.11981496]
[1763647341882,12.25989896,140.46,140.44,0.1]
[1763647342080,0.72,140.48,140.44,0.1]
[1763647342579,1.74,140.47,140.44,0.1]
[1763647342982,1.74,140.47,140.44,7.22044725]
[1763647343187,1.74,140.51,140.45,0.66]
[1763647343401,18.12096,140.55,140.45,0.66]
[1763647343402,18.12096,140.54,140.47,12.25989896]
[1763647343712,0.72,140.55,140.47,12.25989896]
[1763647343713,1.74,140.55,140.47,18.12096]
[1763647343884,1.74,140.55,140.48,0.66]
[1763647344083,1.74,140.55,140.5,12.25989896]
[1763647344284,13.99989896,140.55,140.51,7.11693117]
[1763647344620,2.46,140.55,140.51,7.11693117]
[1763647344905,1.74,140.56,140.52,12.91989896]
[1763647345281,1.74,140.56,140.53,12.91989896]
[1763647345687,1.74,140.56,140.48,7.77845102]
[1763647345688,12.25989896,140.54,140.48,7.77845102]
[1763647345886,12.25989896,140.54,140.48,37.83447754]
[1763647346208,12.25989896,140.53,140.48,25.57457858]
[1763647346503,1.74,140.52,140.49,12.25989896]
[1763647346812,1.74,140.54,140.49,12.91989896]
[1763647347014,14.71989896,140.54,140.49,12.91989896]
[1763647347308,12.25989896,140.5,140.45,0.66]
[1763647347495,1.74,140.49,140.45,7.11997152]
[1763647347684,1.74,140.49,140.46,0.66]
[1763647347885,1.74,140.49,140.46,12.91989896]
[1763647348085,12.25989896,140.52,140.46,12.91989896]
[1763647348309,1.74,140.51,140.47,7.11895778]
[1763647348510,1.74,140.52,140.47,37.8362512]
[1763647348683,13.99989896,140.52,140.47,25.57635224]
[1763647348885,1.74,140.52,140.48,12.96989896]
[1763647349113,1.74,140.52,140.48,0.71]
[1763647349282,12.94989896,140.51,140.45,7.82973426]
[1763647349612,12.94989896,140.5,140.45,7.11973426]
[1763647349786,1.74,140.49,140.45,7.11973426]
[1763647349990,1.74,140.49,140.45,7.82973426]
[1763647350202,1.74,140.49,140.45,7.11973426]
[1763647350379,2.43,140.49,140.44,12.35989896]
[1763647350577,12.25989896,140.47,140.44,0.1]
[1763647350780,0.69,140.48,140.44,0.1]
[1763647350781,1.74,140.46,140.44,0.1]
[1763647351129,17.79313763,140.51,140.44,0.1]
[1763647351130,18.81096,140.52,140.44,20.19030519]
[1763647351279,1.74,140.51,140.47,12.25989896]
[1763647351481,1.74,140.52,140.49,12.25989896]
[1763647351688,0.69,140.59,140.48,9.78882769]
[1763647352013,1.74,140.58,140.54,12.25989896]
[1763647352184,1.74,140.59,140.55,12.25989896]
[1763647352377,1.74,140.59,140.56,7.11439954]
[1763647352578,0.69,140.61,140.56,24.9003984]
[1763647352787,0.69,140.64,140.57,12.96989896]
[1763647352984,1.74,140.63,140.57,0.71]
[1763647353286,12.25989896,140.64,140.59,12.25989896]
[1763647353502,3.701803,140.65,140.63,12.25989896]
[1763647353716,0.69,140.72,140.64,12.25989896]
[1763647353915,0.69,140.72,140.65,12.25989896]
[1763647353916,13.99989896,140.71,140.65,12.25989896]
[1763647354110,12.25989896,140.7,140.63,0.71]
[1763647354431,12.25989896,140.7,140.63,20.08060625]
[1763647354432,12.25989896,140.69,140.63,20.08060625]
[1763647354626,0.69,140.69,140.6,0.71]
[1763647354929,12.25989896,140.67,140.61,12.25989896]
[1763647355105,12.25989896,140.67,140.53,0.71]
[1763647355106,12.25989896,140.62,140.53,0.71]
[1763647355291,12.25989896,140.58,140.53,0.71]
[1763647355492,12.25989896,140.57,140.52,12.25989896]
[1763647355710,12.25989896,140.56,140.51,12.25989896]
[1763647356222,28.59978769,140.6,140.53,12.25989896]
[1763647356389,12.25989896,140.58,140.53,19.37540384]
[1763647356815,12.94989896,140.58,140.53,19.37540384]
[1763647356989,1.74,140.57,140.53,7.11550488]
[1763647357192,1.74,140.57,140.53,20.08540384]
[1763647357390,1.74,140.57,140.54,0.71]
[1763647357607,1.74,140.58,140.53,12.25989896]
[1763647357821,1.74,140.58,140.5,7.82736929]
[1763647357822,2.43,140.58,140.5,7.82736929]
[1763647358025,12.25989896,140.56,140.5,7.82736929]
[1763647358192,12.25989896,140.56,140.5,19.37726825]
[1763647358391,12.25989896,140.55,140.49,7.11794113]
[1763647358711,12.25989896,140.53,140.49,7.11794113]
[1763647359406,22.04872665,140.56,140.5,12.96989896]
[1763647359587,1.74,140.53,140.51,12.25989896]
[1763647359790,1.74,140.53,140.52,12.25989896]
[1763647359986,1.74,140.53,140.49,25.62280197]
[1763647360210,2.43,140.53,140.47,7.11855944]
[1763647360519,2.43,140.53,140.46,0.71]
[1763647360520,12.25989896,140.52,140.46,0.71]
[1763647360711,0.69,140.52,140.47,12.25989896]
[1763647360908,13.99989896,140.53,140.48,12.25989896]
[1763647361106,1.74,140.53,140.49,12.25989896]
[1763647361495,1.74,140.53,140.5,12.96989896]
[1763647361818,1.74,140.54,140.5,12.96989896]
[1763647362113,1.74,140.54,140.5,0.71]
[1763647362316,1.74,140.54,140.47,18.12096]
[1763647362317,9.78882769,140.58,140.52,19.37632366]
[1763647362521,12.94989896,140.6,140.54,12.25989896]
[1763647362720,12.25989896,140.59,140.54,12.25989896]
[1763647363221,12.94989896,140.59,140.54,12.25989896]
[1763647363719,12.94989896,140.58,140.53,12.25989896]
[1763647363932,12.25989896,140.56,140.48,17.79491611]
[1763647364113,12.25989896,140.56,140.5,12.25989896]
[1763647364426,12.94989896,140.55,140.43,9.78882769]
[1763647364625,13.99989896,140.54,140.49,12.25989896]
[1763647365104,1.74,140.54,140.5,12.96989896]
[1763647365307,1.74,140.54,140.5,12.25989896]
[1763647365523,1.74,140.54,140.5,12.96989896]
[1763647365819,1.74,140.54,140.51,12.25989896]
[1763647366242,1.74,140.54,140.51,12.96989896]
[1763647366609,12.25989896,140.59,140.53,12.25989896]
[1763647366841,1.74,140.58,140.52,25.61748647]
[1763647367132,1.74,140.58,140.54,12.25989896]
[1763647367330,14.68989896,140.58,140.53,12.25989896]
[1763647367493,2.43,140.58,140.53,12.25989896]
[1763647367924,14.68989896,140.58,140.53,12.25989896]
[1763647368129,1.74,140.58,140.52,24.90748647]
[1763647368324,1.74,140.58,140.54,12.25989896]
[1763647368528,13.99989896,140.58,140.5,24.91103202]
[1763647368713,12.25989896,140.56,140.5,24.91103202]
[1763647368905,1.74,140.55,140.5,37.17093098]
[1763647369227,12.25989896,140.54,140.49,7.11778085]
[1763647369730,0.69,140.54,140.49,37.17254065]
[1763647370111,1.74,140.55,140.51,12.25989896]
[1763647370433,1.74,140.55,140.52,12.25989896]
[1763647370608,12.25989896,140.59,140.54,7.11541198]
[1763647370815,1.74,140.58,140.54,7.11541198]
[1763647371312,2.4,140.58,140.54,7.11541198]
[1763647371828,12.91989896,140.57,140.52,7.1159516]
[1763647372023,0.66,140.57,140.52,37.16691233]
[1763647372220,0.66,140.56,140.52,7.1159516]
[1763647372403,13.99989896,140.55,140.51,7.11684006]
[1763647372599,13.99989896,140.55,140.5,7.11735928]
[1763647372924,12.25989896,140.52,140.46,12.25989896]
[1763647373108,1.74,140.51,140.47,12.25989896]
[1763647373617,1.74,140.52,140.49,12.25989896]
[1763647374229,2.4,140.52,140.45,25.57990032]
[1763647374536,2.4,140.52,140.49,7.11794433]
[1763647374715,2.4,140.52,140.49,19.37784329]
[1763647375026,1.74,140.52,140.51,12.25989896]
[1763647375348,1.74,140.52,140.5,12.25989896]
[1763647375829,1.74,140.52,140.49,12.25989896]
[1763647376015,1.74,140.52,140.48,12.25989896]
[1763647376528,1.74,140.52,140.48,19.37796202]
[1763647376930,1.74,140.52,140.49,0.66]
[1763647377135,12.91989896,140.55,140.5,12.25989896]
[1763647377435,9.51548873,140.54,140.49,12.25989896]
[1763647377729,9.78882769,140.53,140.49,12.25989896]
[1763647378036,10.44882769,140.53,140.49,12.25989896]
[1763647378220,0.66,140.52,140.49,12.25989896]
[1763647378526,1.74,140.51,140.49,12.25989896]
[1763647378733,1.74,140.51,140.49,19.37781406]
[1763647378970,0.66,140.57,140.5,12.91989896]
[1763647379137,1.74,140.54,140.52,12.25989896]
[1763647379335,27.57181848,140.59,140.53,12.25989896]
[1763647379336,16.90171204,140.59,140.53,12.25989896]
[1763647379506,1.74,140.58,140.54,12.25989896]
[1763647379704,1.74,140.58,140.53,12.25989896]
[1763647379932,0.66,140.57,140.52,12.25989896]
[1763647380137,12.25989896,140.56,140.51,12.25989896]
[1763647380431,1.74,140.55,140.5,12.25989896]
[1763647380625,1.74,140.55,140.52,19.37632366]
[1763647381014,12.25989896,140.53,140.44,0.76]
[1763647381214,12.25989896,140.49,140.44,0.1]
[1763647381429,1.74,140.48,140.44,0.1]
[1763647381623,1.74,140.48,140.46,12.25989896]
[1763647381831,1.74,140.48,140.47,12.25989896]
[1763647382034,0.66,140.58,140.47,12.91989896]
[1763647382213,18.12096,140.56,140.52,12.25989896]
[1763647382412,18.12096,140.56,140.48,0.66]
[1763647382413,18.78096,140.56,140.51,12.25989896]
[1763647382613,0.66,140.61,140.54,7.11541198]
[1763647382824,0.66,140.61,140.55,12.25989896]
[1763647382825,1.74,140.6,140.55,12.25989896]
[1763647383017,12.91989896,140.59,140.52,0.66]
[1763647383227,1.74,140.6,140.52,0.66]
[1763647383442,1.74,140.6,140.57,12.25989896]
[1763647383748,0.66,140.69,140.59,12.25989896]
[1763647383946,24.87389025,140.71,140.65,12.25989896]
[1763647384120,14.65989896,140.7,140.64,12.25989896]
[1763647384322,14.65989896,140.7,140.6,12.25989896]
[1763647384520,20.52096,140.7,140.65,12.25989896]
[1763647384721,20.52096,140.7,140.65,19.36927083]
[1763647384935,20.52096,140.7,140.65,7.02120111]
[1763647385137,7.68120111,140.69,140.63,7.02120111]
[1763647385339,7.68120111,140.69,140.57,0.66]
[1763647385340,7.02120111,140.65,140.57,0.66]
[1763647385552,18.12096,140.67,140.62,7.02120111]
[1763647385553,1.74,140.64,140.62,7.02120111]
[1763647385762,1.74,140.64,140.57,1.74]
[1763647385940,24.87581045,140.7,140.63,7.02120111]
[1763647385941,9.78882769,140.69,140.63,7.02120111]
[1763647386139,1.74,140.67,140.65,7.02120111]
[1763647386526,1.74,140.67,140.66,7.02120111]
[1763647386729,1.74,140.67,140.65,7.02120111]
[1763647387031,7.10644003,140.72,140.66,7.02120111]
[1763647387241,1.74,140.71,140.68,7.02120111]
[1763647387642,1.74,140.71,140.65,0.66]
[1763647388050,1.74,140.71,140.69,7.02120111]
[1763647388435,0.2,140.74,140.7,7.02120111]
[1763647388749,9.04544891,140.74,140.66,18.12096]
[1763647388937,0.66,140.73,140.68,7.02120111]
[1763647389253,7.68120111,140.73,140.68,7.02120111]
[1763647389442,0.66,140.73,140.68,7.02120111]
[1763647389636,0.66,140.72,140.67,7.02120111]
[1763647389845,1.74,140.71,140.68,7.02120111]
[1763647390048,1.74,140.71,140.66,0.66]
[1763647390248,2.4,140.71,140.67,7.02120111]
[1763647390563,1.74,140.71,140.67,7.02120111]
[1763647390741,1.74,140.71,140.68,7.02120111]
[1763647391051,1.74,140.71,140.69,7.02120111]
[1763647391250,1.74,140.71,140.68,0.66]
[1763647391441,1.74,140.71,140.67,7.76871742]
[1763647391641,1.74,140.71,140.65,7.10984713]
[1763647391957,8.84692028,140.71,140.66,7.02120111]
[1763647392158,8.84692028,140.71,140.59,9.78882769]
[1763647392159,25.14216111,140.68,140.61,7.02120111]
[1763647392451,1.74,140.67,140.6,0.66]
[1763647392656,7.10692028,140.71,140.65,7.02120111]
[1763647392832,7.10692028,140.71,140.6,18.78096]
[1763647392833,18.5500288,140.7,140.63,7.11085828]
[1763647393142,11.52882769,140.7,140.63,7.77085828]
[1763647393345,19.2100288,140.7,140.64,7.02120111]
[1763647393936,19.2100288,140.7,140.65,7.02120111]
[1763647394179,1.74,140.7,140.63,0.66]
[1763647394479,18.12096,140.72,140.68,7.02120111]
[1763647394480,7.10644249,140.72,140.68,7.02120111]
[1763647394632,1.74,140.71,140.69,7.68120111]
[1763647394832,0.2,140.74,140.69,14.78894884]
[1763647395034,1.74,140.73,140.71,7.02120111]
[1763647395260,1.74,140.73,140.7,7.68120111]
[1763647395477,2.4,140.73,140.66,0.66]
[1763647395649,2.4,140.73,140.68,7.02120111]
[1763647396358,2.4,140.73,140.68,7.68120111]
[1763647396744,9.50614707,140.73,140.68,7.68120111]
[1763647396981,1.74,140.73,140.69,7.68120111]
[1763647397264,1.74,140.73,140.65,19.86096]
[1763647397265,1.74,140.73,140.72,7.02120111]
[1763647398169,1.94,140.74,140.71,7.02120111]
[1763647398553,0.2,140.74,140.72,7.68120111]
[1763647398751,0.2,140.74,140.72,7.02120111]
[1763647398948,0.2,140.74,140.69,7.02120111]
[1763647398949,7.96565945,140.74,140.69,7.02120111]
[1763647399147,7.02120111,140.71,140.63,0.66]
[1763647399390,9.78882769,140.73,140.54,5.92534508]
[1763647399391,7.02120111,140.68,140.62,7.02120111]
[1763647399877,7.68120111,140.68,140.62,7.02120111]
[1763647400377,14.78971132,140.68,140.63,14.13177024]
[1763647400580,0.67,140.72,140.65,7.02120111]
[1763647400772,0.67,140.72,140.63,7.11056913]
[1763647400773,1.74,140.71,140.67,7.02120111]
[1763647400978,0.67,140.7,140.62,7.8012619]
[1763647401274,7.02120111,140.68,140.62,7.02120111]
[1763647401483,1.74,140.67,140.62,7.02120111]
[1763647401673,1.74,140.67,140.62,7.71120111]
[1763647401876,1.74,140.67,140.63,0.69]
[1763647402078,7.02120111,140.69,140.63,7.71120111]
[1763647402253,12.80514356,140.8,140.66,24.88269585]
[1763647402254,0.67,140.73,140.66,24.88269585]
[1763647402448,1.74,140.72,140.67,0.69]
[1763647402654,1.74,140.72,140.67,7.02120111]
[1763647402949,2.41,140.71,140.66,7.02120111]
[1763647403377,2.41,140.71,140.66,7.71120111]
[1763647403750,1.74,140.71,140.67,0.69]
[1763647403968,7.22120111,140.74,140.68,7.02120111]
[1763647404149,7.30557024,140.74,140.69,7.02120111]
[1763647404354,16.06677135,140.74,140.68,14.12952035]
[1763647404554,16.06677135,140.74,140.68,7.02120111]
[1763647404555,34.50002273,140.74,140.68,7.02120111]
[1763647404757,16.73677135,140.74,140.68,14.12950225]
[1763647404964,16.73677135,140.74,140.68,7.02120111]
[1763647405173,7.69120111,140.73,140.66,7.10918526]
[1763647405464,7.02120111,140.72,140.67,7.02120111]
[1763647405678,7.69120111,140.73,140.67,7.02120111]
[1763647405863,7.02120111,140.72,140.66,0.69]
[1763647406067,7.02120111,140.72,140.66,14.82031739]
[1763647406365,7.02120111,140.72,140.63,0.69]
[1763647406366,14.12852165,140.7,140.63,0.69]
[1763647406677,7.02120111,140.68,140.63,7.71120111]
[1763647406887,7.02120111,140.68,140.62,7.11102881]
[1763647406888,7.02120111,140.68,140.62,7.02120111]
[1763647407086,7.02120111,140.67,140.61,7.02120111]
[1763647407272,0.67,140.67,140.62,7.02120111]
[1763647407467,7.02120111,140.68,140.62,7.02120111]
[1763647407666,9.43120111,140.69,140.62,0.69]
[1763647407873,1.74,140.68,140.65,7.02120111]
[1763647408265,1.74,140.68,140.59,18.12096]
[1763647408266,7.02120111,140.66,140.51,50.0]
[1763647408476,25.55446497,140.65,140.58,7.02120111]
[1763647408661,1.74,140.64,140.6,7.02120111]
[1763647408858,0.69,140.69,140.61,7.02120111]
[1763647409068,0.69,140.69,140.62,7.02120111]
[1763647409069,7.02120111,140.67,140.62,7.02120111]
[1763647409278,7.02120111,140.66,140.6,7.02120111]
[1763647409583,7.02120111,140.63,140.57,7.02120111]
[1763647409880,1.74,140.62,140.57,7.02120111]
[1763647410084,1.74,140.62,140.5,9.78882769]
[1763647410085,18.12096,140.61,140.5,9.78882769]
[1763647410267,9.78882769,140.6,140.5,7.02120111]
[1763647410476,9.78882769,140.58,140.52,7.02120111]
[1763647410662,10.47882769,140.6,140.54,7.02120111]
[1763647410663,7.71120111,140.6,140.54,7.02120111]
[1763647410999,37.5416548,140.68,140.51,18.84096]
[1763647411000,18.12096,140.62,140.51,18.84096]
[1763647411202,1.74,140.61,140.49,12.24882769]
[1763647411390,2.43,140.61,140.54,7.02120111]
[1763647411564,2.43,140.61,140.56,7.02120111]
[1763647411760,1.74,140.61,140.56,7.74120111]
[1763647411980,2.43,140.61,140.56,7.74120111]
[1763647412162,0.69,140.61,140.56,7.74120111]
[1763647412365,9.78882769,140.64,140.58,14.1345885]
[1763647412366,7.02120111,140.64,140.58,14.1345885]
[1763647412567,7.02120111,140.65,140.59,7.02120111]
[1763647412769,1.74,140.64,140.58,7.83338739]
[1763647412972,8.76120111,140.64,140.59,7.02120111]
[1763647413258,1.74,140.64,140.59,7.02120111]
[1763647413562,2.43,140.64,140.59,7.02120111]
[1763647413881,0.69,140.63,140.55,0.72]
[1763647414275,7.71120111,140.63,140.55,0.72]
[1763647414483,14.82215014,140.63,140.57,7.02120111]
[1763647414682,7.71120111,140.63,140.57,7.02120111]
[1763647415002,25.14216111,140.65,140.59,7.02120111]
[1763647415293,1.74,140.62,140.57,7.02120111]
[1763647415495,7.02120111,140.6,140.52,0.72]
[1763647415799,27.90978769,140.61,140.52,0.72]
[1763647415800,7.02120111,140.59,140.54,7.02120111]
[1763647416099,1.74,140.58,140.54,7.02120111]
[1763647416268,1.74,140.58,140.53,7.74120111]
[1763647416461,2.43,140.58,140.49,16.90677202]
[1763647416659,2.43,140.58,140.53,7.74120111]
[1763647416660,1.74,140.58,140.53,7.74120111]
[1763647417283,2.43,140.58,140.53,7.74120111]
[1763647417491,9.54339694,140.58,140.53,7.02120111]
[1763647417790,7.71120111,140.57,140.52,7.02120111]
[1763647418160,7.71120111,140.57,140.51,0.72]
[1763647418375,7.71120111,140.57,140.51,14.85793792]
[1763647418376,7.11439954,140.56,140.51,14.85793792]
[1763647418566,1.74,140.55,140.51,14.85793792]
[1763647418775,1.74,140.55,140.53,7.02120111]
[1763647419008,1.74,140.56,140.54,7.02120111]
[1763647419289,1.74,140.64,140.55,14.76240222]
[1763647419489,1.74,140.64,140.56,7.74120111]
[1763647419670,1.74,140.64,140.6,7.02120111]
[1763647419873,1.74,140.64,140.61,7.02120111]
[1763647420193,7.02120111,140.62,140.54,0.72]
[1763647420374,18.12096,140.62,140.57,7.02120111]
[1763647420571,18.81096,140.62,140.58,7.02120111]
[1763647420778,32.9435966,140.62,140.57,7.02120111]
[1763647420979,32.2535966,140.62,140.56,7.02120111]
[1763647421188,7.02120111,140.58,140.51,0.72]
[1763647421370,1.74,140.57,140.53,7.02120111]
[1763647421700,1.74,140.57,140.54,7.02120111]
[1763647421879,1.74,140.59,140.56,7.02120111]
[1763647422079,1.74,140.59,140.53,0.72]
[1763647422382,1.74,140.59,140.55,7.02120111]
[1763647422563,1.74,140.59,140.56,7.02120111]
[1763647422795,1.74,140.59,140.57,7.02120111]
[1763647423200,0.69,140.69,140.61,18.12096]
[1763647423495,0.69,140.69,140.56,9.78882769]
[1763647423496,7.02120111,140.66,140.56,9.78882769]
[1763647423702,1.74,140.65,140.53,7.83571064]
[1763647423871,7.02120111,140.62,140.56,7.02120111]
[1763647424066,1.74,140.61,140.57,7.02120111]
[1763647424269,0.69,140.64,140.58,0.72]
[1763647424468,1.74,140.62,140.59,14.13390363]
[1763647425268,1.74,140.62,140.58,0.72]
[1763647425493,1.74,140.62,140.59,7.02120111]
[1763647425698,2.43,140.62,140.58,7.02120111]
[1763647425873,9.5415258,140.62,140.58,7.02120111]
[1763647426771,9.5415258,140.62,140.52,0.72]
[1763647426772,7.02120111,140.59,140.52,0.72]
[1763647427102,7.02120111,140.59,140.44,25.21775769]
[1763647427103,7.02120111,140.56,140.48,0.72]
[1763647427395,7.71120111,140.55,140.5,7.02120111]
[1763647427695,2.43,140.54,140.5,7.02120111]
[1763647427997,1.74,140.54,140.48,0.72]
[1763647428193,1.74,140.54,140.52,7.02120111]
[1763647428398,1.74,140.54,140.53,7.02120111]
[1763647428701,1.74,140.54,140.5,0.72]
[1763647429195,1.74,140.54,140.5,7.83735724]
[1763647429498,1.74,140.54,140.52,7.02120111]
[1763647429696,1.74,140.54,140.49,0.72]
[1763647430065,1.74,140.54,140.52,7.02120111]
[1763647430301,1.74,140.54,140.51,7.02120111]
[1763647430501,1.74,140.54,140.52,7.02120111]
[1763647430806,1.74,140.54,140.51,7.1169064]
[1763647431007,1.74,140.54,140.52,7.02120111]
[1763647431184,0.67,140.53,140.45,9.78882769]
[1763647431367,8.76120111,140.54,140.46,0.67]
[1763647431567,8.76120111,140.54,140.51,7.02120111]
[1763647431568,1.74,140.54,140.51,7.02120111]
[1763647431792,1.74,140.55,140.53,7.02120111]
[1763647432003,1.74,140.58,140.54,7.02120111]
[1763647432307,34.67695679,140.63,140.52,0.67]
[1763647432308,1.74,140.62,140.57,7.02120111]
[1763647432514,2.41,140.62,140.55,0.67]
[1763647432681,1.74,140.62,140.57,7.11389343]
[1763647432994,9.52159207,140.62,140.59,7.02120111]
[1763647433393,0.67,140.61,140.57,7.02120111]
[1763647433599,7.02120111,140.6,140.55,7.02120111]
[1763647433909,7.69120111,140.59,140.54,7.02120111]
[1763647434107,1.74,140.58,140.54,7.02120111]
[1763647434310,2.41,140.58,140.54,7.02120111]
[1763647434606,2.41,140.58,140.53,7.11549841]